Cogmind - Beta 15 @@@ ROGUE MODE // 2025.06.24 @ 17:38:21 Player: BlobtheGreat Result: Destroyed by P-70 Sage with Tesla Rifle Performance ------------- Evolutions (6) 3000 Regions Visited (15) 3000 Robots Destroyed (206) 1030 Value Destroyed (9722) 9722 Prototype IDs (32) 640 Alien Tech Used (0) 0 Bonus (5883) 5883 TOTAL SCORE: 23275 Bonus ------- High Alert Combat Kills 1316 Follower Combat Kills 267 Entered Garrisons 1000 Used RIF Installer 3000 Aligned with FarCom 300 Cogmind --------- Core Integrity 0/1150 Matter 251/300 Energy 96/100 System Corruption 33% Temperature Cool (0) Movement Core (50) Location -4/Factory Parts ------- > --- POWER (1) -------- (None) > --- PROPULSION (5) --- (None) > --- UTILITY (9) ------ Enhanced Optical Array > --- WEAPON (4) ------- (None) > --- INVENTORY (5) ---- Layered Heavy Armor Plating Advanced Drone Bay (2/2) Improved Remote Datajack Peak State ------------ > --- POWER ------------ Micro Fission Core > --- PROPULSION ------- Improved Treads Medium Treads Armored Wheel Armored Huge Wheel > --- UTILITY ---------- Advanced Heat Sink Large Storage Unit Enhanced Optical Array Transmission Jammer Improved Medium Armor Plating Relay Coupler [NC] Relay Coupler [Grunt] Relay Coupler [Sentry] Relay Coupler [Hunter] > --- WEAPON ----------- Gauss Rifle Gauss Rifle Gauss Rifle Remote Datajack > --- INVENTORY -------- Neutrino Core Hardened Medium Armor Plating Layered Heavy Armor Plating Relay Coupler [Grunt] Relay Coupler [Sentry] Advanced Drone Bay Gauss Rifle Gauss Rifle Flak Gun Heavy Rocket Launcher Plasma Lance [Rating: 76] Favorites ----------- Power Deuterium Engine Engine Deuterium Engine Power Core Light Nuclear Core Propulsion Armored Treads Treads Armored Treads Leg Aluminum Leg Wheel Armored Huge Wheel Flight Unit Field Propulsion Drive Utility Large Storage Unit Device Improved Heat Sink Storage Large Storage Unit Processor Enhanced Optical Array Hackware Relay Coupler [NC] Protection Layered Medium Armor Plating Weapon Gauss Rifle Ballistic Gun Gauss Rifle Ballistic Cannon AWS/Autocannon Special Weapon Remote Datajack Impact Weapon Power Maul Slashing Weapon Axe Piercing Weapon Plasma Lance Special Melee Weapon Improved Datajack Build | -11 -10 -10 -10 -9 -8 -8 -8 -8 -7 -7 -6 -6 -5 -5 -4 ------- Run | Yrd Mat Min Exi Min Mat Gar Mat Gar Fac Gar Fac Gar Fac Gar Fac Slots Evolved 12 | . . . . . 4 . . . 2 . 2 . 2 . 2 Power . | . . . . . . . . . . . . . . . . Propulsion 3 | . . . . . 2 . . . 1 . . . . . . Utility 7 | . . . . . 1 . . . . . 2 . 2 . 2 Weapon 2 | . . . . . 1 . . . 1 . . . . . . Parts Attached 101 | 8 7 . 1 4 5 19 17 3 2 . 3 9 6 10 7 Power 11 | 1 1 . . 1 . 2 2 . . . . 2 1 1 . Engine 7 | 1 1 . . 1 . 1 1 . . . . 1 1 . . Core 4 | . . . . . . 1 1 . . . . 1 . 1 . Reactor . | . . . . . . . . . . . . . . . . Propulsion 32 | 3 2 . . 1 2 8 6 . 1 . . 3 1 2 3 Treads 23 | . 2 . . 1 2 6 6 . 1 . . 3 1 1 . Leg 5 | 2 . . . . . 2 . . . . . . . . 1 Wheel 3 | 1 . . . . . . . . . . . . . 1 1 Hover . | . . . . . . . . . . . . . . . . Flight 1 | . . . . . . . . . . . . . . . 1 Utility 26 | 2 1 . . 2 1 4 2 1 . . 3 2 2 4 2 Device 7 | 1 . . . . 1 2 . 1 . . 1 1 . . . Storage 2 | 1 1 . . . . . . . . . . . . . . Processor 1 | . . . . . . . . . . . 1 . . . . Hackware 9 | . . . . . . . 1 . . . 1 1 2 2 2 Protection 7 | . . . . 2 . 2 1 . . . . . . 2 . Artifact . | . . . . . . . . . . . . . . . . Weapon 32 | 2 3 . 1 . 2 5 7 2 1 . . 2 2 3 2 Energy Gun . | . . . . . . . . . . . . . . . . Energy Cannon . | . . . . . . . . . . . . . . . . Ballistic Gun 25 | 2 3 . 1 . 1 4 6 1 . . . 2 1 2 2 Ballistic Cannon 2 | . . . . . 1 . . . 1 . . . . . . Launcher . | . . . . . . . . . . . . . . . . Special Weapon 1 | . . . . . . . . . . . . . 1 . . Impact Weapon 1 | . . . . . . . . 1 . . . . . . . Slashing Weapon 1 | . . . . . . 1 . . . . . . . . . Piercing Weapon 1 | . . . . . . . . . . . . . . 1 . Special Melee Weapon 1 | . . . . . . . 1 . . . . . . . . Unidentified Prototypes 2 | . . . . . 1 . . . . . . . . 1 . Parts Lost 52 | . . . . 1 . 11 2 . . . . 7 2 7 22 Power 5 | . . . . . . 2 . . . . . 2 . . 1 Propulsion 21 | . . . . 1 . 6 1 . . . . 3 1 4 5 Utility 16 | . . . . . . 3 1 . . . . 2 . 1 9 Weapon 10 | . . . . . . . . . . . . . 1 2 7 Highest Loss Streak 16 | . . . . 1 . 3 1 . . . . 3 2 2 16 To Critical Strikes 2 | . . . . 1 . 1 . . . . . . . . . Average Backups 12 | 4 10 14 13 12 12 12 12 12 14 15 14 13 12 12 10 Power 1 | . 1 1 1 1 1 . 1 1 1 1 1 . 1 1 1 Propulsion 1 | 2 1 3 2 2 . . 1 3 2 2 2 . . . . Utility 4 | . 2 3 3 3 3 4 4 3 4 5 4 5 5 5 4 Weapon 5 | . 5 7 7 6 7 7 5 4 5 6 6 5 5 4 2 Tool/Special . | . . . . . . . . . . . . . . . . Unused Backups 38 | . 2 2 1 2 6 2 5 3 . . . 2 3 . 10 Power 5 | . . . . . 1 1 . 1 . . . . . . 2 Propulsion 4 | . 1 . . 1 . . 1 1 . . . . . . . Utility 11 | . . . 1 1 . 1 1 . . . . . 1 . 6 Weapon 16 | . 1 2 . . 5 . 3 . . . . 2 2 . 1 Tool/Special 2 | . . . . . . . . 1 . . . . . . 1 Average Slot Usage (%) 93 | . 99 100 72 99 98 97 99 100 83 84 85 91 98 93 78 Engine 7 | . 14 14 14 14 9 5 3 9 7 7 6 4 5 4 . Core 1 | . . . . . . 3 5 . . . . 1 . . 4 Treads 29 | . 22 28 28 27 35 34 35 36 37 38 33 31 28 17 5 Device 11 | . 14 14 14 5 8 11 13 9 14 15 16 9 11 11 9 Storage 8 | . 14 14 14 14 9 9 9 9 7 7 6 6 5 5 4 Processor 1 | . . . . . . . . . . . 3 6 5 5 5 Hackware 3 | . . . . . . . 3 . . . 6 6 10 11 19 Protection 3 | . . . . 8 9 6 1 9 . . . 2 5 4 3 Ballistic Gun 18 | . 28 28 1 28 18 22 25 26 . 2 . 14 19 22 17 Ballistic Cannon 1 | . . . . . 8 2 . . 6 7 6 3 . . . Peak Build Rating 76 | 8 11 11 13 13 22 31 40 42 65 65 70 71 69 74 76 Average Rating 40 | 5 8 11 8 12 19 28 33 40 63 64 69 63 66 70 61 On Entrance 36 | . 8 11 11 13 13 22 30 40 42 64 64 70 59 69 68 Naked Turns . | . . . . . . . . . . . . . . . . Heaviest Build 101 | 12 30 30 30 32 37 45 47 49 101 96 95 96 55 56 51 Greatest Support 108 | 20 40 40 40 40 80 80 80 80 100 100 100 100 108 108 40 Greatest Overweight (x) 7 | . . . . 1 . 3 . . 1 . . 1 . 1 7 Average Overweight (x) . | . . . . . . . . . . . . . . . 2 Largest Inventory Capacity 15 | 8 15 15 15 15 15 15 15 15 15 15 15 15 15 15 15 Average Capacity 14 | 7 12 15 15 15 15 15 15 15 15 15 15 15 15 15 14 Most Carried 15 | 8 15 15 15 15 15 15 15 15 15 15 15 15 15 15 14 Average Carried 14 | 4 10 14 14 14 14 14 14 14 14 15 14 13 14 14 12 Final Capacity 15 | 8 15 15 15 15 15 15 15 15 15 15 15 15 15 15 5 Final Carried 15 | 8 15 15 15 15 15 15 14 15 15 15 15 15 15 15 5 Class Distribution -------------------- 23% | Mutant 18% | Bothacker-Skirmisher 17% | Skirmisher 12% | Assassin 11% | Scavenger-Skirmisher 7% | Botlord-Skirmisher 3% | Scavenger-Assassin Dominant Class ---------------- Mutant | -10/Materials Mutant | -10/Mines Mutant | -10/Exiles Mutant | -9/Mines Skirmisher | -8/Materials Scavenger-Skirmisher | -8/Garrison Scavenger-Skirmisher | -8/Materials Skirmisher | -8/Garrison Assassin | -7/Factory Assassin | -7/Garrison Assassin | -6/Factory Bothacker-Skirmisher | -6/Garrison Bothacker-Skirmisher | -5/Factory Bothacker-Skirmisher | -5/Garrison Botlord-Skirmisher | -4/Factory Resources | -11 -10 -10 -10 -9 -8 -8 -8 -8 -7 -7 -6 -6 -5 -5 -4 ----------- Run | Yrd Mat Min Exi Min Mat Gar Mat Gar Fac Gar Fac Gar Fac Gar Fac Matter Collected 6213 | 269 411 70 . 176 3 1186 965 755 50 22 40 715 241 615 695 Remotely . | . . . . . . . . . . . . . . . . Salvage Created 7519 | 53 550 29 . 51 . 1291 1159 958 446 423 147 1098 300 615 399 Parts 428 | 12 40 2 . 10 . 61 69 54 19 22 7 51 18 34 29 Haulers Intercepted 7 | . 2 . . . . . 3 . 1 . . . 1 . . Recyclers Shooed 6 | 1 . . . . 1 . . . . . . . . . 4 Parts Field Recycled . | . . . . . . . . . . . . . . . . Retrieved Matter . | . . . . . . . . . . . . . . . . Parts Self-Destructed . | . . . . . . . . . . . . . . . . Prevented . | . . . . . . . . . . . . . . . . Kills | -11 -10 -10 -10 -9 -8 -8 -8 -8 -7 -7 -6 -6 -5 -5 -4 ------- Run | Yrd Mat Min Exi Min Mat Gar Mat Gar Fac Gar Fac Gar Fac Gar Fac Combat Hostiles Destroyed 182 | . 15 2 . 3 . 33 23 24 12 12 5 27 5 13 8 Melee 2 | . . . . . . 1 . . . . . . . . 1 Guns 132 | . 15 2 . 3 . 29 23 24 . 2 . 9 5 13 7 Cannons 47 | . . . . . . 3 . . 11 10 5 18 . . . Classes Destroyed 16 | 1 6 . . . . 3 2 1 . . . 2 1 . . Worker 6 | . 2 . . 1 . . . . 1 . 2 . . . . Builder 2 | . . . . . . . . . . . . . 1 . 1 Tunneler 4 | 3 . . . . . . 1 . . . . . . . . Hauler 7 | . 2 . . . . . 3 . 1 . . . 1 . . Operator 1 | . 1 . . . . . . . . . . . . . . Watcher 4 | . 2 . . . . . 1 . . . 1 . . . . Swarmer 59 | . 8 2 . 3 . 10 5 4 3 3 4 7 3 4 3 Grunt 55 | . 7 . . . . 12 8 6 5 6 . 9 1 . 1 Brawler 6 | . . . . . . . 1 2 1 1 . . . 1 . Duelist 4 | . . . . . . . 1 2 . 1 . . . . . Sentry 28 | . . . . . . 6 7 3 1 1 . 8 . 2 . Specialist 3 | . . . . . . 3 . . . . . . . . . Hunter 10 | . . . . . . 2 1 1 1 . . 1 . 4 . Programmer 15 | . . . . . . . . 6 1 . 1 . 1 2 4 Striker 1 | . . . . . . . . . . . . 1 . . . Executioner 1 | . . . . . . . . . . . . 1 . . . Best Kill Streak 5 | 3 3 2 . 3 . 4 5 4 3 5 4 4 3 4 3 Combat Bots Only 5 | . 3 2 . 3 . 4 5 4 3 5 4 4 3 4 3 Max Kills in Single Turn 2 | 1 1 1 . 1 . 2 1 2 1 2 1 1 2 2 2 Gunslinging 1 | . . . . . . 1 . 1 . . . . 1 1 1 Exploded . | . . . . . . . . . . . . . . . . Melee 1 | . . . . . . 1 . . . . . . . . 1 Uniques/NPCs Destroyed . | . . . . . . . . . . . . . . . . Combat | -11 -10 -10 -10 -9 -8 -8 -8 -8 -7 -7 -6 -6 -5 -5 -4 -------- Run | Yrd Mat Min Exi Min Mat Gar Mat Gar Fac Gar Fac Gar Fac Gar Fac Hostile Shots Fired 1013 | . 52 11 . 21 . 198 92 74 28 20 7 165 27 104 214 Missed 323 | . 12 3 . 4 . 60 27 21 16 9 3 59 7 28 74 Hits 690 | . 40 8 . 17 . 138 65 53 12 11 4 106 20 76 140 Melee 9 | . . . . . . . 2 1 . . . 5 . . 1 Projectile 681 | . 40 8 . 17 . 138 63 52 12 11 4 101 20 76 139 AOE 2 | . . . . . . . . . . . . . . . 2 Critical Strikes 42 | . 1 . . 1 . 5 5 6 1 . . . . 7 16 Part Disruptions 1 | . . . . . . . . 1 . . . . . . . Damage Taken 11239 | . 356 61 . 125 . 1907 1054 796 184 127 65 1711 323 1522 3008 Core 2010 | . 83 8 . 21 . 138 164 56 . . 35 216 58 76 1155 Absorbed by Shields . | . . . . . . . . . . . . . . . . Regen/Repaired (Parts) 526 | . 51 . . . . . 151 . . . 271 . . . 53 Core Remaining (%) 74 | 100 . . . 55 . . . 34 . 100 . 70 . 86 . Volleys Fired 462 | 4 67 6 . 7 1 88 67 63 . 3 . 56 14 45 41 Largest 4 | 2 2 2 . 2 3 3 3 3 . 1 . 4 4 4 4 Hottest 114 | 40 46 46 . 46 79 81 78 80 . 30 . 111 111 114 112 Shots Fired 1307 | 8 133 12 . 15 3 251 194 159 31 23 8 176 32 151 111 Gun 1145 | 8 133 12 . 15 2 213 194 159 . 3 . 135 25 151 95 Cannon 139 | . . . . . 1 38 . . 31 20 8 41 . . . Launcher . | . . . . . . . . . . . . . . . . Special 23 | . . . . . . . . . . . . . 7 . 16 Kinetic 1284 | 8 133 12 . 15 3 251 194 159 31 23 8 176 25 151 95 Thermal . | . . . . . . . . . . . . . . . . Explosive . | . . . . . . . . . . . . . . . . Electromagnetic . | . . . . . . . . . . . . . . . . Robot Hit Streak 22 | 5 7 1 . 3 3 12 15 14 8 7 10 22 8 14 9 Robot Miss Streak 6 | 1 4 4 . 2 . 4 3 5 3 2 . 5 5 6 5 Penetration Max 1 | . . . . . . 1 1 . . 1 . 1 1 . 1 Secondary Targets 24 | . 3 . . 2 . 6 1 4 . . . 1 1 3 3 Max Gunslinging Chain 1 | . 1 . . 1 . 1 1 1 . . . 1 1 1 1 Autonomous 101 | . . . . . . . . . 31 20 8 42 . . . Shots Hit Robots 856 | 5 79 3 . 7 3 167 136 105 25 17 10 112 24 98 65 Core Hits 405 | 4 37 2 . 4 1 59 54 44 8 10 6 64 19 67 26 Critical Kills 2 | . . . . . . . . 1 . . . . . 1 . Critical Parts Destroyed 11 | . . . . . . 2 . . . . . 3 2 2 2 Critical Strikes 26 | . . . . . 1 3 . 1 5 1 1 6 2 4 2 Destroy 14 | . . . . . . 2 . 1 . . . 3 2 4 2 Blast 12 | . . . . . 1 1 . . 5 1 1 3 . . . Melee Attacks 44 | . . . . . . 11 4 2 2 2 10 3 . 3 7 Impact 18 | . . . . . . . . 1 2 2 10 3 . . . Slashing 11 | . . . . . . 11 . . . . . . . . . Piercing 10 | . . . . . . . . . . . . . . 3 7 Sneak Attacks 8 | . . . . . . 1 3 1 1 . 2 . . . . Combat Hostiles . | . . . . . . . . . . . . . . . . Follow-up Attacks . | . . . . . . . . . . . . . . . . Damage Inflicted 20520 | 67 868 49 . 108 51 2924 2322 2017 1774 1420 827 4310 485 1791 1507 Guns 13221 | 67 868 49 . 108 27 2346 2320 2017 . 74 . 1707 485 1791 1362 Cannons 6767 | . . . . . 24 506 . . 1629 1346 659 2603 . . . Explosions . | . . . . . . . . . . . . . . . . Melee 523 | . . . . . . 70 . . 145 . 168 . . . 140 Ramming 9 | . . . . . . 2 2 . . . . . . . 5 Kinetic 19988 | 67 868 49 . 108 51 2852 2320 2017 1629 1420 659 4310 485 1791 1362 Thermal . | . . . . . . . . . . . . . . . . Explosive . | . . . . . . . . . . . . . . . . Electromagnetic . | . . . . . . . . . . . . . . . . Impact 313 | . . . . . . . . . 145 . 168 . . . . Slashing 70 | . . . . . . 70 . . . . . . . . . Piercing 140 | . . . . . . . . . . . . . . . 140 Highest Corruption 33 | . 3 3 3 3 . . . 4 . . . . . 3 33 Average Corruption 3 | . 2 3 3 3 . . . 2 . . . . . 2 8 Corruption Purged . | . . . . . . . . . . . . . . . . Corruption Blocked . | . . . . . . . . . . . . . . . . Effects 123 | . 25 6 12 16 . . . 30 . . . . . 3 31 Message Errors 28 | . 8 . 3 6 . . . 7 . . . . . 1 3 Matter Fused 35 | . 7 3 3 2 . . . 9 . . . . . 1 10 Heat Flow Errors 10 | . 2 . 1 2 . . . 4 . . . . . . 1 Energy Discharges 18 | . 2 2 3 4 . . . 3 . . . . . . 4 Parts Rejected 3 | . 1 . . . . . . . . . . . . . 2 Parts Fused 5 | . 1 . . . . . . 1 . . . . . . 3 Data Loss (minor) 7 | . 1 . 1 . . . . 4 . . . . . . 1 Data Loss (major) 2 | . . 1 1 . . . . . . . . . . . . Misfires 6 | . 1 . . 1 . . . 1 . . . . . 1 2 Alerts 1 | . . . . 1 . . . . . . . . . . . Misdirections 5 | . . . . . . . . . . . . . . . 5 Weapon Failures 3 | . 2 . . . . . . 1 . . . . . . . Overload Shots . | . . . . . . . . . . . . . . . . Overflow Damage 1003 | . . . . . . . . . 394 177 136 296 . . . Projectiles 877 | . . . . . . . . . 356 177 48 296 . . . Explosions . | . . . . . . . . . . . . . . . . Melee 126 | . . . . . . . . . 38 . 88 . . . . Knockbacks 24 | . . . . . 1 6 . . 7 4 2 4 . . . Impact 1 | . . . . . . . . . . . 1 . . . . Kinetic 20 | . . . . . 1 6 . . 5 4 1 3 . . . Secondary 3 | . . . . . . . . . 2 . . 1 . . . Self-Inflicted Damage 2 | . . . . . . . . . . . . . . . 2 Shots . | . . . . . . . . . . . . . . . . Rammed 5 | . . . . . . 1 1 . . . . . . . 3 Targets Rammed 5 | . . . . . . 1 1 . . . . . . . 3 Kicked . | . . . . . . . . . . . . . . . . Crushed . | . . . . . . . . . . . . . . . . Highest Temperature 294 | . 245 10 171 248 9 294 250 265 . . . 36 . 17 157 Average Temperature 78 | . 71 7 87 115 6 112 81 31 . . . 18 . 12 83 Received Heat Transfer 2085 | . 90 . . . . 630 459 153 63 39 . 408 18 90 135 Effects 5 | . . . . . . 2 3 . . . . . . . . Energy Bleed 1 | . . . . . . 1 . . . . . . . . . Interference 4 | . . . . . . 1 3 . . . . . . . . Siege Activations . | . . . . . . . . . . . . . . . . Martial Activations . | . . . . . . . . . . . . . . . . Shielding Activations . | . . . . . . . . . . . . . . . . Robots Disrupted . | . . . . . . . . . . . . . . . . Combat Hostiles . | . . . . . . . . . . . . . . . . Robots Corrupted 3 | . . . . . . . . . 2 . 1 . . . . Combat Hostiles 1 | . . . . . . . . . 1 . . . . . . Parts Fried 6 | . . . . . . . . . 4 . 2 . . . . Impact Corruptions 8 | . . . . . . . . . 4 . 4 . . . . Robots Melted . | . . . . . . . . . . . . . . . . Combat Hostiles . | . . . . . . . . . . . . . . . . Parts Melted . | . . . . . . . . . . . . . . . . Heat Transferred . | . . . . . . . . . . . . . . . . Parts Sabotaged . | . . . . . . . . . . . . . . . . Parts Stolen . | . . . . . . . . . . . . . . . . Parts Stripped . | . . . . . . . . . . . . . . . . Power Chain Reactions . | . . . . . . . . . . . . . . . . Alert | -11 -10 -10 -10 -9 -8 -8 -8 -8 -7 -7 -6 -6 -5 -5 -4 ------- Run | Yrd Mat Min Exi Min Mat Gar Mat Gar Fac Gar Fac Gar Fac Gar Fac Maximum Alert Level 4 | . . . . . . 4 2 4 2 2 1 3 2 2 1 Low Security (%) 39 | 100 100 100 . 100 100 17 . . . . 64 6 23 32 91 Level 1 22 | . . . . . . 22 33 4 . 19 35 46 48 53 8 Level 2 24 | . . . . . . 12 66 24 100 80 . 39 28 13 . Level 3 10 | . . . . . . 34 . 57 . . . 7 . . . Level 4 2 | . . . . . . 12 . 13 . . . . . . . Level 5 . | . . . . . . . . . . . . . . . . High Security . | . . . . . . . . . . . . . . . . Max Security . | . . . . . . . . . . . . . . . . Peak Influence 1336 | 15 111 50 . 70 30 1336 651 1273 667 677 354 704 513 474 248 Initial 667 | . . . . . . 6 651 388 667 392 354 40 369 103 248 Average 348 | 1 28 6 . 4 2 607 475 823 579 506 168 432 306 261 78 Influence Increases 6379 | 15 509 50 . 75 85 1480 734 885 353 285 120 734 375 441 238 Destroy 0b10 Robot/C 3470 | . 300 40 . 60 . 720 460 480 240 240 75 405 120 195 135 Destroy 0b10 Robot/NC 122 | 15 35 . . 5 . . 25 . 10 . 12 . 16 . 4 Destroy Leader 502 | . 48 10 . 10 . 20 158 30 62 20 18 24 38 24 40 Allied During Kill 35 | . . . . . . 11 . . . . . . 18 . 6 Successful Hack 154 | . 51 . . . 10 14 6 . . 14 9 11 9 23 7 Disable Machine 144 | . . . . . 30 . . 15 15 . . 24 60 . . Anti-Garrison Action 1277 | . . . . . . 600 . 300 . . . 226 . 151 . Destroy Structure 300 | . . . . . . 55 10 15 11 11 6 44 90 48 10 Partial Spotted 60 | . 45 . . . 15 . . . . . . . . . . Lose Combat Pursuer 315 | . 30 . . . 30 60 75 45 15 . . . 24 . 36 Influence Decreases 6379 | 15 509 50 . 75 75 154 1473 209 1066 168 739 88 931 115 712 Entered New Map 2619 | . . . . . . 4 685 209 606 168 323 18 335 45 226 Time Decay 2743 | 15 464 50 . 75 75 . 618 . 310 . 416 . 356 . 364 Lost Part 352 | . . . . . . 110 20 . . . . 70 20 70 62 Lost Ally 170 | . . . . . . 40 . . . . . . 70 . 60 Purge Threat 495 | . 45 . . . . . 150 . 150 . . . 150 . . Squads Dispatched 15 | . 1 . . . . . 5 . 2 . 2 . 2 . 3 Investigation 2 | . 1 . . . . . . . . . 1 . . . . Extermination 5 | . . . . . . . . . 1 . 1 . 1 . 2 Reinforcement 6 | . . . . . . . 3 . 1 . . . 1 . 1 Assault . | . . . . . . . . . . . . . . . . Garrison 2 | . . . . . . . 2 . . . . . . . . Intercept . | . . . . . . . . . . . . . . . . Searches Triggered . | . . . . . . . . . . . . . . . . Construction Impeded 1 | . . . . . . . 1 . . . . . . . . Haulers Reinforced 2 | . . . . . . . . . 1 . . . 1 . . Active Scanning Responses . | . . . . . . . . . . . . . . . . Cargo Convoy Interrupts . | . . . . . . . . . . . . . . . . Stealth | -11 -10 -10 -10 -9 -8 -8 -8 -8 -7 -7 -6 -6 -5 -5 -4 --------- Run | Yrd Mat Min Exi Min Mat Gar Mat Gar Fac Gar Fac Gar Fac Gar Fac Distress Signals 15 | . 3 . . . 1 . 5 . 2 . . . 3 . 1 Communications Jammed 103 | . . . . . . . . . . . . . 56 . 47 Distress Signals 103 | . . . . . . . . . . . . . 56 . 47 Times Spotted 241 | . 25 2 . 3 5 32 33 24 15 11 6 21 16 13 35 Peak Tracking Total 8 | . 3 2 . 3 3 4 6 4 4 3 4 3 8 2 8 Tactical Retreats 15 | . 2 . . . 1 2 4 2 1 . . . 2 . 1 Traps | -11 -10 -10 -10 -9 -8 -8 -8 -8 -7 -7 -6 -6 -5 -5 -4 ------- Run | Yrd Mat Min Exi Min Mat Gar Mat Gar Fac Gar Fac Gar Fac Gar Fac Traps Triggered 23 | . 2 . . . . 3 . 2 1 1 . 3 . 8 3 Indirectly . | . . . . . . . . . . . . . . . . Trap Hack Attempts 15 | . . . . . . . 15 . . . . . . . . Triggered . | . . . . . . . . . . . . . . . . Disarmed 1 | . 1 . . . . . . . . . . . . . . Reprogrammed 1 | . . . . . . . 1 . . . . . . . . Reused . | . . . . . . . . . . . . . . . . Traps Extracted . | . . . . . . . . . . . . . . . . Installed . | . . . . . . . . . . . . . . . . Triggered . | . . . . . . . . . . . . . . . . Machines | -11 -10 -10 -10 -9 -8 -8 -8 -8 -7 -7 -6 -6 -5 -5 -4 ---------- Run | Yrd Mat Min Exi Min Mat Gar Mat Gar Fac Gar Fac Gar Fac Gar Fac Machines Disabled 22 | . . . . . 2 2 . 6 1 . . 4 5 2 . Max in Single Turn 1 | . . . . . . 1 . 1 1 . . 1 . 1 . Garrison Relay 11 | . . . . . . 2 . 5 . . . 2 . 2 . Machines Repaired . | . . . . . . . . . . . . . . . . Machines Dismantled . | . . . . . . . . . . . . . . . . Machines Sabotaged . | . . . . . . . . . . . . . . . . Overloaded Fab Kills . | . . . . . . . . . . . . . . . . Hacking | -11 -10 -10 -10 -9 -8 -8 -8 -8 -7 -7 -6 -6 -5 -5 -4 --------- Run | Yrd Mat Min Exi Min Mat Gar Mat Gar Fac Gar Fac Gar Fac Gar Fac Machines Accessed 42 | . 8 1 1 . 2 2 7 2 4 1 4 1 4 2 3 Terminals 29 | . 6 1 . . 1 2 4 2 3 1 2 1 2 2 2 Fabricators 1 | . . . . . . . . . . . . . 1 . . Repair Stations 4 | . 1 . . . . . 1 . . . 1 . . . 1 Recycling Units 1 | . 1 . . . . . . . . . . . . . . Scanalyzers 1 | . . . . . . . 1 . . . . . . . . Garrison Access 5 | . . . . . 1 . 1 . 1 . 1 . 1 . . Total Hacks 93 | . 25 2 1 . 5 2 15 4 7 1 10 2 9 4 6 Successful 51 | . 17 1 1 . 3 2 7 . 2 1 6 1 4 2 4 Failed 41 | . 7 1 . . 2 . 8 4 5 . 4 1 5 2 2 Catastrophic 8 | . 1 . . . . . 2 2 1 . . . 1 . 1 Database Lockouts 1 | . 1 . . . . . . . . . . . . . . Manual 27 | . 9 . 1 . 4 . 5 . 4 . . . 1 . 3 Terminals 72 | . 21 2 . . 4 2 9 4 6 1 7 2 6 4 4 Fabricators 2 | . . . . . . . . . . . . . 2 . . Repair Stations 8 | . 2 . . . . . 2 . . . 2 . . . 2 Recycling Units 2 | . 2 . . . . . . . . . . . . . . Scanalyzers 3 | . . . . . . . 3 . . . . . . . . Garrison Access 5 | . . . . . 1 . 1 . 1 . 1 . 1 . . Terminal Hacks 32 | . 13 1 1 . 1 2 1 . 1 1 3 1 3 2 2 Record 4 | . . 1 . . . . . . . . 3 . . . . Robot Analysis 4 | . 3 . . . 1 . . . . . . . . . . Prototype ID Bank 3 | . 1 . . . . . . . . . . . 1 . 1 Emergency Access Points 3 | . . . . . . 1 . . . . . 1 . 1 . Terminal Index 1 | . 1 . . . . . . . . . . . . . . Scanalyzer Index 1 | . 1 . . . . . . . . . . . . . . Unreport Threat 4 | . 1 . . . . . 1 . 1 . . . 1 . . Locate Traps 3 | . 3 . . . . . . . . . . . . . . Disarm Traps 1 | . 1 . . . . . . . . . . . . . . Hauler Manifests 2 | . 1 . . . . . . . . . . . . . 1 Zone Layout 2 | . 1 . . . . . . . . . . . 1 . . Garrison Registry 1 | . . . . . . . . . . 1 . . . . . Patrol Navigation 1 | . . . . . . 1 . . . . . . . . . Security Stations 1 | . . . . . . . . . . . . . . 1 . Proto ID Catalog 1 | . . . 1 . . . . . . . . . . . . Fabricator Hacks . | . . . . . . . . . . . . . . . . Repair Station Hacks 8 | . 2 . . . . . 2 . . . 2 . . . 2 Scan Component 4 | . 1 . . . . . 1 . . . 1 . . . 1 Repair 4 | . 1 . . . . . 1 . . . 1 . . . 1 Recycling Unit Hacks 1 | . 1 . . . . . . . . . . . . . . Retrieve Components 1 | . 1 . . . . . . . . . . . . . . Scanalyzer 2 | . . . . . . . 2 . . . . . . . . Insert Component 1 | . . . . . . . 1 . . . . . . . . Analyze 1 | . . . . . . . 1 . . . . . . . . Garrison Access Hacks 5 | . . . . . 1 . 1 . 1 . 1 . 1 . . Unlock Access 5 | . . . . . 1 . 1 . 1 . 1 . 1 . . Unauthorized Hacks 3 | . 1 . . . 1 . 1 . . . . . . . . Terminals 3 | . 1 . . . 1 . 1 . . . . . . . . Botnet 3 | . 1 . . . 1 . 1 . . . . . . . . Fabricators . | . . . . . . . . . . . . . . . . Repair Stations . | . . . . . . . . . . . . . . . . Recycling Units . | . . . . . . . . . . . . . . . . Scanalyzers . | . . . . . . . . . . . . . . . . Garrison Access . | . . . . . . . . . . . . . . . . Data Cores Recovered . | . . . . . . . . . . . . . . . . Used . | . . . . . . . . . . . . . . . . Hacking Detections 29 | . 7 1 . . 2 2 4 2 3 . 3 1 3 1 . Full Trace Events 3 | . 2 . . . . . . . . . 1 . . . . Feedback Events 1 | . 1 . . . . . . . . . . . . . . Corruption 1 | . 1 . . . . . . . . . . . . . . Feedback Blocked . | . . . . . . . . . . . . . . . . Robot Schematics Acquired . | . . . . . . . . . . . . . . . . Robots Built . | . . . . . . . . . . . . . . . . Authchips . | . . . . . . . . . . . . . . . . Time . | . . . . . . . . . . . . . . . . Total Robot Build Rating . | . . . . . . . . . . . . . . . . Part Schematics Acquired . | . . . . . . . . . . . . . . . . Parts Built . | . . . . . . . . . . . . . . . . Authchips . | . . . . . . . . . . . . . . . . Time . | . . . . . . . . . . . . . . . . Total Part Build Rating . | . . . . . . . . . . . . . . . . Parts Repaired 4 | . 1 . . . . . 1 . . . 1 . . . 1 Time 152 | . 32 . . . . . 38 . . . 50 . . . 32 Parts Recycled . | . . . . . . . . . . . . . . . . Recycled Matter . | . . . . . . . . . . . . . . . . Retrieved Matter . | . . . . . . . . . . . . . . . . Retrieved Components 2 | . 2 . . . . . . . . . . . . . . Parts Scanalyzed 1 | . . . . . . . 1 . . . . . . . . Part Schematics Acquired . | . . . . . . . . . . . . . . . . Parts Damaged . | . . . . . . . . . . . . . . . . Bothacking | -11 -10 -10 -10 -9 -8 -8 -8 -8 -7 -7 -6 -6 -5 -5 -4 ------------ Run | Yrd Mat Min Exi Min Mat Gar Mat Gar Fac Gar Fac Gar Fac Gar Fac Used RIF Installer 6 | . . . . . . 1 . 1 . 2 . 1 . 1 . Command Fork 1 | . . . . . . . . . . . . 1 . . . Threat Obfuscator 1 | . . . . . . . . . . 1 . . . . . Signal Jammer 1 | . . . . . . . . . . . . . . 1 . Zone Cloak 1 | . . . . . . . . 1 . . . . . . . Program Shield 1 | . . . . . . . . . . 1 . . . . . Robots Hacked 15 | . . . . . . . 4 . . . . . 4 . 7 Non-combat 9 | . . . . . . . 4 . . . . . 2 . 3 Combat 6 | . . . . . . . . . . . . . 2 . 4 Robot Hacks Applied 17 | . . . . . . . 4 1 . . . . 5 . 7 no_distress 3 | . . . . . . . 1 1 . . . . 1 . . drop_inventory 3 | . . . . . . . 2 . . . . . . . 1 find_garrison 1 | . . . . . . . . . . . . . 1 . . scatter_targeting 1 | . . . . . . . . . . . . . . . 1 formatsys_low 2 | . . . . . . . 1 . . . . . . . 1 formatsys_high 7 | . . . . . . . . . . . . . 3 . 4 Relay Couplers Released 43 | . . . . . . 10 . 20 . . . 7 . 6 . Machine Destruction 43 | . . . . . . 10 . 20 . . . 7 . 6 . Attached 9 | . . . . . . . 1 . . . 1 1 2 2 2 Fabnet Peak Effective % . | . . . . . . . . . . . . . . . . Robots Rewired 3 | . . . . . . 2 . . . . . 1 . . . Allies Hacked . | . . . . . . . . . . . . . . . . Hacks Repelled . | . . . . . . . . . . . . . . . . Allies | -11 -10 -10 -10 -9 -8 -8 -8 -8 -7 -7 -6 -6 -5 -5 -4 -------- Run | Yrd Mat Min Exi Min Mat Gar Mat Gar Fac Gar Fac Gar Fac Gar Fac Total Allies 13 | . . . . 1 . 2 1 . . . . 1 3 . 5 Largest Group 3 | . . . . 1 1 2 1 1 . . . 1 2 . 3 Highest-Rated Group 160 | . . . . 31 31 30 26 26 . . . 119 160 . 86 Highest-Rated Ally 119 | . . . . 31 31 15 26 26 . . . 119 119 . 49 Total Orders 7 | . . . . . . . 5 1 . . . . 1 . . STAY 5 | . . . . . . . 3 1 . . . . 1 . . FOLLOW 2 | . . . . . . . 2 . . . . . . . . Ally Attacks 43 | . . . . . 3 13 . . . . . . 18 . 9 Total Damage 972 | . . . . . . 259 . . . . . . 481 . 232 Kills 9 | . . . . . . 3 . . . . . . 5 . 1 Allies Corrupted 1 | . . . . . . . . . . . . . . . 1 Allies Melted 3 | . . . . . . 2 . . . . . . . . 1 Intel | -11 -10 -10 -10 -9 -8 -8 -8 -8 -7 -7 -6 -6 -5 -5 -4 ------- Run | Yrd Mat Min Exi Min Mat Gar Mat Gar Fac Gar Fac Gar Fac Gar Fac Active Infowar (turns) 14718 | 31 1782 438 892 369 553 1575 1680 . 662 440 1002 2004 806 1391 1093 Optics 5855 | . . . . . . . . . . . 561 2004 806 1391 1093 Terrain 6235 | . . . . . . 1385 1680 . 662 440 1002 1066 . . . Seismic 4255 | 31 1782 438 892 369 553 190 . . . . . . . . . Jamming 3241 | . . . . . . . . . . . 1 . 806 1391 1043 Robot Analysis Total 4 | . 3 . . . 1 . . . . . . . . . . Derelict Logs Recovered 3 | . . 1 . 2 . . . . . . . . . . . Drone Launches . | . . . . . . . . . . . . . . . . Drone Recoveries . | . . . . . . . . . . . . . . . . Exploration | -11 -10 -10 -10 -9 -8 -8 -8 -8 -7 -7 -6 -6 -5 -5 -4 ------------- Run | Yrd Mat Min Exi Min Mat Gar Mat Gar Fac Gar Fac Gar Fac Gar Fac Turns Passed 18261 | 112 1782 438 892 1036 568 2501 2068 1392 681 440 1002 2004 806 1391 1148 Spaces Moved 9702 | 71 987 261 551 549 311 1281 999 664 365 235 434 1044 451 811 688 Core 110 | 2 . . . . . . . . . . . . . . 108 Treads 8452 | . 778 261 551 549 311 1276 999 664 365 235 434 1044 451 504 30 Legs 278 | 64 209 . . . . 5 . . . . . . . . . Wheels 861 | 5 . . . . . . . . . . . . . 307 549 Hover . | . . . . . . . . . . . . . . . . Flight 1 | . . . . . . . . . . . . . . . 1 Fastest Speed 45 | 50 120 160 160 160 160 160 162 170 170 170 170 168 166 115 45 Average Speed 159 | 115 151 160 160 160 160 162 164 170 171 170 170 172 166 147 126 Slowest Speed 400 | 120 160 160 160 240 160 330 170 170 250 170 170 250 168 245 400 Overloaded Moves . | . . . . . . . . . . . . . . . . Propulsion Burnouts . | . . . . . . . . . . . . . . . . Robots Hopped . | . . . . . . . . . . . . . . . . Potential Cave-ins . | . . . . . . . . . . . . . . . . Cave-ins Triggered . | . . . . . . . . . . . . . . . . Exploration Rate (%) 49 | 4 91 44 62 87 22 86 69 74 13 46 10 76 16 73 21 Regions Visited 15 Branch Regions 3 Pre-discovered Areas . | . . . . . . . . . . . . . . . . Known Exits Taken 5 | . . . . . 1 . 1 . 1 . 1 . 1 . . Unknown Exits Taken 5 | 1 1 1 1 1 . . . . . . . . . . . Scrap Searched 3 | . . 1 . 2 . . . . . . . . . . . Spaces Dug 9 | . . . . . . . . . . 1 5 . . . 3 Terrain Destroyed 46 | . . . . . . . . 2 11 6 6 12 1 4 4 Melee 9 | . . . . . . . . . . 1 5 . . . 3 Projectile 37 | . . . . . . . . 2 11 5 1 12 1 4 1 AOE . | . . . . . . . . . . . . . . . . Terrain Rammed . | . . . . . . . . . . . . . . . . Walls Destroyed . | . . . . . . . . . . . . . . . . Machines Disabled . | . . . . . . . . . . . . . . . . Actions | -11 -10 -10 -10 -9 -8 -8 -8 -8 -7 -7 -6 -6 -5 -5 -4 --------- Run | Yrd Mat Min Exi Min Mat Gar Mat Gar Fac Gar Fac Gar Fac Gar Fac Total 11606 | 90 1154 271 568 688 384 1525 1307 836 421 268 677 1151 487 907 872 Wait 1001 | . 68 1 . 122 42 91 168 91 38 27 227 3 . 15 108 Move 9691 | 70 986 260 550 548 310 1280 999 663 365 234 434 1043 451 810 688 Hop . | . . . . . . . . . . . . . . . . Pick Up 109 | 7 14 2 7 2 12 13 10 6 6 . 3 12 6 5 4 Fast Attach 38 | 8 2 . . . 2 6 2 . 1 . . 2 1 5 9 Attach 46 | . . . 2 1 3 11 1 . 3 . 2 8 4 5 6 Detach 4 | 1 . . . . . . . . 1 . . . . 2 . Swap 74 | . 8 . . 5 3 7 19 5 1 2 1 8 6 3 6 Drop 85 | . 9 2 9 3 11 7 20 6 4 . . 5 5 4 . Fire 462 | 4 67 6 . 7 1 88 67 63 . 3 . 56 14 45 41 Melee 44 | . . . . . . 11 4 2 2 2 10 3 . 3 7 Ram 1 | . . . . . . . . . . . . . . . 1 Kick . | . . . . . . . . . . . . . . . . Crush 4 | . . . . . . 1 1 . . . . . . . 2 Escape Stasis 14 | . . . . . . . . . . . . 4 . 10 . Rewire 18 | . . . . . . 10 1 . . . . 7 . . . Trap 15 | . . . . . . . 15 . . . . . . . . Miscellaneous . | . . . . . . . . . . . . . . . . Route ------- -11/Scrapyard -10/Materials (discovered 5 exits: [*Mat x3] / *Min x2) -10/Mines -10/Exiles -9/Mines (discovered 2 exits: *Mat x2) -8/Materials (discovered 2 exits: Fac / Gar) -8/Garrison (discovered 3 exits: *Mat x3) -8/Materials (discovered 5 exits: *Fac x2 / [*Sto x2] / Gar) -8/Garrison (discovered 3 exits: *Fac x3) -7/Factory -7/Garrison (discovered 3 exits: *Fac x3) -6/Factory (discovered 2 exits: [*Low] / Gar) -6/Garrison (discovered 3 exits: *Fac x3) -5/Factory (discovered 2 exits: *Fac / Gar) -5/Garrison (discovered 3 exits: *Fac x3) -4/Factory (discovered 1 exit: [*Res]) History --------- Turn | Location | Event 20 | -11/Scrapyard | Discovered new exit (range 15) 113 | -11/Scrapyard | Entered Materials 304 | -10/Materials | Build established: Mutant 427 | -10/Materials | Discovered new exit (range 5) 618 | -10/Materials | Discovered new exit (range 14) 846 | -10/Materials | Discovered new exit (range 13) 1003 | -10/Materials | Central database locked down 1003 | -10/Materials | Discovered new exit (range 7) 1203 | -10/Materials | Discovered new exit (range 10) 1851 | -10/Materials | Repaired Flail 1895 | -10/Materials | Entered Mines 1917 | -10/Mines | Met a Derelict bent on vengeance 1960 | -10/Mines | Learned Materials garrison access intel 2067 | -10/Mines | Deemed a non-threat by the Exiles lab entrance 2068 | -10/Mines | Discovered new exit (range 5) 2105 | -10/Mines | Found a hidden stash of uninstalled traps 2217 | -10/Mines | Assembled infested the area 2333 | -10/Mines | Entered Exiles 2354 | -10/Exiles | Discovered new exit (range 15) 2374 | -10/Exiles | Met 8R-AWN 2400 | -10/Exiles | Met EX-HEX 2469 | -10/Exiles | Met EX-DEC 2621 | -10/Exiles | Met EX-BIN 2638 | -10/Exiles | Aligned with FarCom system 2640 | -10/Exiles | Given EX-Vault access code 2677 | -10/Exiles | Opened EX-Vault 2733 | -10/Exiles | Found AWS/Autocannon 2767 | -10/Exiles | Warned to stay clear of 0b10 Research branches 3225 | -10/Exiles | Left Exiles lab with AWS/Autocannon 3225 | -10/Exiles | Entered Mines 3746 | -9/Mines | Discovered new exit (range 10) 3960 | -9/Mines | Learned 2 Materials zone layouts 3973 | -9/Mines | Learned Materials security intel 4045 | -9/Mines | Received a Mining Laser from a helpful Derelict 4179 | -9/Mines | Discovered new exit (range 15) 4261 | -9/Mines | Entered Materials 4261 | -8/Materials | Accompanied by 1 ally 4261 | -8/Materials | Evolved 4 slots: Propulsion x2, Utility x1, Weapon x1 4262 | -8/Materials | Identified exit to Factory 4264 | -8/Materials | Loaded intel: 1 garrison access location 4566 | -8/Materials | Build established: Skirmisher 4824 | -8/Materials | Identified exit to Garrison 4829 | -8/Materials | Entered Garrison 5017 | -8/Garrison | Triggered checkpoint 5089 | -8/Garrison | Lost 3 parts (1p1n1u) 5249 | -8/Garrison | Triggered checkpoint 5270 | -8/Garrison | Garrison Relay disabled 5323 | -8/Garrison | Build established: Tank 5333 | -8/Garrison | Discovered new exit (range 11) 5500 | -8/Garrison | Discovered new exit (range 10) 5532 | -8/Garrison | Triggered checkpoint 5585 | -8/Garrison | Triggered checkpoint 5648 | -8/Garrison | Garrison Relay disabled 5809 | -8/Garrison | Triggered checkpoint 5904 | -8/Garrison | Triggered checkpoint 5956 | -8/Garrison | Build established: Scavenger-Skirmisher 5991 | -8/Garrison | Discovered new exit (range 12) 6053 | -8/Garrison | Lost 3 parts (2n1u) 6083 | -8/Garrison | Triggered checkpoint 6653 | -8/Garrison | Installed Relay Interface Framework 6875 | -8/Garrison | Build established: Scavenger-Assassin 7001 | -8/Garrison | Triggered checkpoint 7171 | -8/Garrison | Triggered checkpoint 7330 | -8/Garrison | Entered Materials 7340 | -8/Materials | Discovered new exit (range 16) 7633 | -8/Materials | Build established: Scavenger-Skirmisher 8093 | -8/Materials | Discovered exit to Factory (range 4) 8325 | -8/Materials | Repaired Arm. Treads 8448 | -8/Materials | Discovered new exit (range 14) 8504 | -8/Materials | Discovered exit to Factory (range 9) 9285 | -8/Materials | Garrison activated, responded to threat 9331 | -8/Materials | Core integrity fell below 50% 9332 | -8/Materials | Build established: Skirmisher 9398 | -8/Materials | Identified exit to Garrison 9398 | -8/Materials | Entered Garrison 9398 | -8/Garrison | Accompanied by 1 ally 9458 | -8/Garrison | Triggered checkpoint 9477 | -8/Garrison | P-60 Hacker assimilated allied Administrator 3a 9516 | -8/Garrison | Garrison Relay disabled 9692 | -8/Garrison | Triggered checkpoint 9738 | -8/Garrison | Triggered checkpoint 9758 | -8/Garrison | Garrison Relay disabled 9782 | -8/Garrison | Triggered checkpoint 9841 | -8/Garrison | Discovered exit to Factory (range 12) 10149 | -8/Garrison | Triggered checkpoint 10315 | -8/Garrison | Discovered exit to Factory (range 8) 10388 | -8/Garrison | Garrison Relay disabled 10391 | -8/Garrison | Garrison Relay disabled 10496 | -8/Garrison | Triggered checkpoint 10632 | -8/Garrison | Discovered exit to Factory (range 12) 10681 | -8/Garrison | Expanded RIF knowledge: Zone Cloak 10708 | -8/Garrison | Triggered checkpoint 10790 | -8/Garrison | Entered Factory 10790 | -7/Factory | Evolved 2 slots: Propulsion x1, Weapon x1 11096 | -7/Factory | Build established: Assassin 11471 | -7/Factory | Identified exit to Garrison 11471 | -7/Factory | Entered Garrison 11537 | -7/Garrison | Triggered checkpoint 11588 | -7/Garrison | Discovered new exit (range 83) 11588 | -7/Garrison | Discovered new exit (range 35) 11588 | -7/Garrison | Discovered new exit (range 66) 11640 | -7/Garrison | Expanded RIF knowledge: Program Shield 11769 | -7/Garrison | Triggered checkpoint 11866 | -7/Garrison | Expanded RIF knowledge: Threat Obfuscation 11911 | -7/Garrison | Entered Factory 11911 | -6/Factory | Evolved 2 slots: Utility x2 11973 | -6/Factory | Discovered new exit (range 13) 12165 | -6/Factory | Repaired Lyr. Medium Armor Plating 12913 | -6/Factory | Identified exit to Garrison 12913 | -6/Factory | Entered Garrison 12998 | -6/Garrison | Triggered checkpoint 13106 | -6/Garrison | Triggered checkpoint 13139 | -6/Garrison | Garrison Relay disabled 13259 | -6/Garrison | Triggered checkpoint 13398 | -6/Garrison | Discovered new exit (range 11) 13413 | -6/Garrison | Expanded RIF knowledge: Command Fork 13481 | -6/Garrison | Triggered checkpoint 13561 | -6/Garrison | Build established: Bothacker-Skirmisher 13657 | -6/Garrison | Triggered checkpoint 13699 | -6/Garrison | Triggered checkpoint 13734 | -6/Garrison | Discovered new exit (range 19) 13949 | -6/Garrison | Triggered checkpoint 13956 | -6/Garrison | AWS/Autocannon suddenly broke down 14074 | -6/Garrison | Discovered new exit (range 19) 14411 | -6/Garrison | Triggered checkpoint 14589 | -6/Garrison | Spotted Executioner 14590 | -6/Garrison | Spotted Striker 14621 | -6/Garrison | Destroyed Striker 14624 | -6/Garrison | Destroyed Executioner 14648 | -6/Garrison | Lost 3 parts (1p1n1u) 14648 | -6/Garrison | Rewired Executioner 14758 | -6/Garrison | Garrison Relay disabled 14917 | -6/Garrison | Entered Factory 14917 | -5/Factory | Accompanied by 1 ally 14917 | -5/Factory | Evolved 2 slots: Utility x2 15544 | -5/Factory | Discovered new exit (range 9) 15723 | -5/Factory | Identified exit to Garrison 15723 | -5/Factory | Entered Garrison 15828 | -5/Garrison | Learned Factory security intel 15867 | -5/Garrison | Triggered checkpoint 15879 | -5/Garrison | Triggered checkpoint 16009 | -5/Garrison | Discovered new exit (range 21) 16060 | -5/Garrison | Expanded RIF knowledge: Signal Jamming 16175 | -5/Garrison | Garrison Relay disabled 16217 | -5/Garrison | Triggered checkpoint 16311 | -5/Garrison | Spotted B-86 Titan 16381 | -5/Garrison | Discovered new exit (range 12) 16490 | -5/Garrison | Discovered new exit (range 8) 16541 | -5/Garrison | Triggered checkpoint 16746 | -5/Garrison | Garrison Relay disabled 17055 | -5/Garrison | Build established: Botlord-Skirmisher 17114 | -5/Garrison | Entered Factory 17114 | -4/Factory | Evolved 2 slots: Utility x2 17434 | -4/Factory | Lost 5 allies 17446 | -4/Factory | Lost 4 parts (2n1u1w) 17826 | -4/Factory | Discovered new exit (range 16) 17963 | -4/Factory | Repaired Arm. Wheel 18148 | -4/Factory | System corruption reached 10% 18198 | -4/Factory | Core integrity fell below 50% 18214 | -4/Factory | System corruption reached 30% 18237 | -4/Factory | Lost 16 parts (1p2n8u5w) 18250 | -4/Factory | Core integrity fell below 20% 18262 | -4/Factory | Destroyed by P-70 Sage with Tesla Rifle Last Messages --------------- 18227_ O-24 Administrator sends out distress signal. 18227_ O-24 Administrator: "IFF HANDSHAKE FAILED. SECURING TERMINAL." 18230_ System corrupted: Matter fused (-7). 18230_ O-24 Administrator uses terminal to summon reinforcements. 18230_ ALERT: Hostiles spotted, dispatching reinforcements to Terminal F001. 18230_ O-24 Administrator locks terminal. 18231_ K-01 Serf cleans the Nuclear Reactor. 18234_ P-70 Sage resets K-01 Serf, system corruption cleaned. 18248_ System corrupted: Matter fused (-6). 18257_ Acquired Field Propulsion Drive. 18259_ Power Conduit explodes. 18259_ Field Propulsion Drive destroyed. 18261_ K-01 Serf collects debris. Map ----- +----------------------------------------------------+ | #############+##### """ """ ???????????????????? | | ?????# # """ """ #?????????????????? | | ?????# # #?????????????????? | | ?????# " " " " # """ #?????????????????? | | ?????# " " " " # """ #?????????????????? | | ?????# " " " " # """ ??????????????????? | | ?????# " " " " #!/ #?????????????????? | | ?????# " " " " #/ """ #?????????????????? | | ?????#!! " " " " # """ #?????????????????? | | ?????#! " " " " # """ #?????????????????? | | ?????# " " " " # #?????????????????? | | ?????# " " " " / """ """ #??????#######????? | | ?????# # """ """ #??????# #????? | | ?????########### ## """ """ #??????# ###### | | ???????????????#### #??????# " | | ################### """ """ !#??????# ###### | | """ """ #??????# #????? | | """ """ #??????### ###????? | | #??####### #??????? | | #?# "p####?### | | ## " #? * | | +########### ###############;;;;;;p;" # * | | #???# #???????# " # ! | | #???# #???????# p + | | #???# ######### ;g # | | #???# @ !! ; # ! | | #???# ######### !! ] ; #?### | | #???# #???????# ! ; #???? | | #???##### #???????######k#;;;;;;## #???? | | #???????# #????????????#% g g #???? | | #???????# #????????????# ######## | | #???????# #????????????# # ! # | | ######### ############## %""" """ + # | | + % """ """ # *[[ # | | ################+############## """ """ # *[[ # | | ?????????????? ???????????# #? *[! # | | ?????????????#""" #?????????#% #? # | | ?????????????#""" ! #?????????# ##+##### | | ?????????????#""" #?????????# / | | ?????????????# #??????? w ############## | | ?????????????# #???? "" # # | | ?????????????########??? "" ?# # | | ???????????????????????? ???# # | | ??????????????????????? ?????# # | | ??????????????????????????????# # | | ??????????????????????????????# # | | ??????????????????????????????# + | | ??????????????????????????????# # | | ??????????????????????????????# # | | ????????????????############### ###########+## | +----------------------------------------------------+ Best States ------------- Heat Dissipation 62 Energy Generation 18 Energy Capacity 310 Matter Stores 300 Matter Capacity 300 Sight Range 22 Terrain Scan Range 16 Terrain Scan Density 10 Jamming Range 12 Armor Coverage 300 Evasion (%) 55 Recoil Reduction 5 Relay Coupler Types 4 Relay Coupler Value 90 Item Schematics ----------------- None Robot Schematics ------------------ None Fabricated ------------ Nothing Repaired ---------- Flail | 57% | -10/Materials Arm. Treads | 49% | -8/Materials Lyr. Medium Armor Plating | 17% | -6/Factory Arm. Wheel | 47% | -4/Factory Alien Tech Used ----------------- None Achievements -------------- Gun Specialist Total Silence Challenges ------------ None Game ------ Seed SmallAntimissileStorage Manual? 0 Play Time 02:23:53 Cumulative 38.9 hours Start 2025.06.23 @ 16:34:53 End 2025.06.24 @ 17:38:21 Sessions 3 Manual Loads 0 Difficulty Rogue Special Mode None Game No. 37 Rogue 37 Adventurer 0 Explorer 0 Win Type - Total 0 Types 0/0/0/0/0/0/0/0/0/0 Lore% 25 Gallery% 28 Achievement% 32 Wizard Run 0 Options --------- Layout 1 ASCII 0 Keyboard 1 Movement Arrows Keybinds 0 Fullscreen 1 Font 24/Smallcaps Map View 50x40 Zoom Use 0% Tactical HUD 1 Map Filters NONE Filters NONE Steam 1 RUN: cd544e3d-5763-4d57-be83-4dd80295d029